bitfinex-derivatives/quotes_BTCF0:USTF0_20250504
["timestamp","ask_amount","ask_price","bid_price","bid_amount"]
[1746371721701,0.8577065,95686.0,95685.0,0.03616]
[1746371721898,0.8577065,95686.0,95685.0,0.2451687]
[1746371722097,0.2090349,95673.0,95672.0,0.15908884]
[1746371722303,1.3590349,95673.0,95672.0,0.15908884]
[1746371722803,1.4590349,95673.0,95672.0,0.15908884]
[1746371723003,0.2090502,95666.0,95663.0,0.2090559]
[1746371723203,0.57399569,95666.0,95663.0,0.2090559]
[1746371723400,0.57399569,95666.0,95664.0,0.2090538]
[1746371723401,0.62789569,95666.0,95664.0,0.2090538]
[1746371723601,0.62789569,95666.0,95665.0,0.4233523]
[1746371723804,0.79289569,95666.0,95665.0,0.4233523]
[1746371724402,0.83899569,95666.0,95665.0,0.4233523]
[1746371725306,0.83899569,95666.0,95665.0,0.4243523]
[1746371726291,0.83899569,95666.0,95665.0,0.2152999]
[1746371726898,0.77249569,95666.0,95665.0,0.2152999]
[1746371727207,0.74069569,95666.0,95665.0,0.4243523]
[1746371727702,0.83899569,95666.0,95665.0,0.4243523]
[1746371728098,0.83899569,95666.0,95665.0,0.21162031]
[1746371729807,0.83899569,95666.0,95665.0,0.2100524]
[1746371734506,0.83899569,95666.0,95665.0,0.001]
[1746371734902,1.24899569,95666.0,95665.0,0.001]
[1746371735108,0.83899569,95666.0,95665.0,0.001]
[1746371736317,0.74069569,95666.0,95665.0,0.001]
[1746371736517,0.79119569,95666.0,95665.0,0.001]
[1746371737215,0.83899569,95666.0,95665.0,0.001]
[1746371737607,0.83899569,95666.0,95665.0,0.2100524]
[1746371737807,0.83899569,95666.0,95665.0,0.001]
[1746371739514,0.79119569,95666.0,95665.0,0.001]
[1746371739814,0.83899569,95666.0,95665.0,0.001]
[1746371741821,0.2613202,95665.0,95662.0,0.2234646]
[1746371742012,0.7313202,95665.0,95664.0,0.2090532]
[1746371742212,0.8131202,95665.0,95664.0,0.2090532]
[1746371742914,0.2090567,95663.0,95662.0,0.209058]
[1746371743222,0.6090567,95663.0,95662.0,0.210058]
[1746371743415,0.6612567,95663.0,95662.0,0.210058]
[1746371743916,0.7090567,95663.0,95662.0,0.210058]
[1746371744420,0.6602567,95663.0,95662.0,0.209058]
[1746371744718,0.6602567,95663.0,95662.0,0.296658]
[1746371745109,0.7080567,95663.0,95662.0,0.296658]
[1746371745411,0.7080567,95663.0,95662.0,0.297658]
[1746371746218,0.7080567,95663.0,95662.0,0.298658]
[1746371747020,0.6097567,95663.0,95662.0,0.298658]
[1746371747621,0.9897567,95663.0,95662.0,0.298658]
[1746371747919,1.0880567,95663.0,95662.0,0.298658]
[1746371750520,1.0880567,95663.0,95662.0,0.0896]
[1746371751219,1.4733927,95663.0,95662.0,0.002]
[1746371751416,1.9633927,95663.0,95662.0,0.002]
[1746371751617,2.0633927,95663.0,95662.0,0.002]
[1746371752221,2.0172927,95663.0,95662.0,0.002]
[1746371752521,1.9127567,95663.0,95662.0,0.002]
[1746371752919,1.9588567,95663.0,95662.0,0.002]
[1746371753318,1.9127567,95663.0,95662.0,0.002]
[1746371754423,1.8605567,95663.0,95662.0,0.002]
[1746371754631,1.2517767,95663.0,95662.0,0.002]
[1746371755121,1.2517767,95663.0,95662.0,0.12]
[1746371755614,1.2527767,95663.0,95662.0,0.2826]
[1746371756427,1.2517767,95663.0,95662.0,0.2816]
[1746371756825,1.2517767,95663.0,95662.0,0.4906589]
[1746371758227,1.2517767,95663.0,95662.0,0.2816]
[1746371758616,1.2527767,95663.0,95662.0,0.2816]
[1746371759524,1.2527767,95663.0,95662.0,0.4906589]
[1746371761917,0.69472,95663.0,95662.0,0.4906589]
[1746371762128,0.9037767,95663.0,95662.0,0.4906589]
[1746371771137,0.6251,95663.0,95662.0,0.4906589]
[1746371771340,0.8341567,95663.0,95662.0,0.4906589]
[1746371773131,0.8341567,95663.0,95662.0,0.31956243]
[1746371774138,0.7841567,95663.0,95662.0,0.43756243]
[1746371776941,0.5751,95663.0,95662.0,0.43756243]
[1746371777442,0.6572,95663.0,95662.0,0.43756243]
[1746371782448,0.657,95663.0,95662.0,0.43756243]
[1746371782636,0.6568,95663.0,95662.0,0.43756243]
[1746371783247,0.6631,95663.0,95662.0,0.43756243]
[1746371783548,0.6631,95663.0,95662.0,0.79836243]
[1746371785350,0.2831,95663.0,95662.0,0.79836243]
[1746371786350,0.4921567,95663.0,95662.0,0.79836243]
[1746371787250,0.14392,95674.0,95673.0,0.2090349]
[1746371787454,0.6229527,95674.0,95673.0,0.5698349]
[1746371788141,0.6229527,95674.0,95673.0,0.6878349]
[1746371788954,0.6239527,95674.0,95673.0,0.6878349]
[1746371789747,0.271,95674.0,95673.0,0.6878349]
[1746371789949,0.1977,95674.0,95673.0,0.6878349]
[1746371790254,0.241,95674.0,95673.0,0.6878349]
[1746371790553,0.1523,95674.0,95673.0,0.6878349]
[1746371792869,0.241,95674.0,95673.0,0.6878349]
[1746371795373,0.3258,95674.0,95673.0,0.6878349]
[1746371798574,0.5348327,95674.0,95673.0,0.6878349]
[1746371799471,0.5348327,95674.0,95673.0,0.7739349]
[1746371799975,0.5348327,95674.0,95673.0,1.1347349]
[1746371803473,0.4870327,95674.0,95673.0,1.1347349]
[1746371804084,0.5348327,95674.0,95673.0,1.1347349]
[1746371806286,0.4870327,95674.0,95673.0,1.1347349]
[1746371807688,0.5348327,95674.0,95673.0,1.1347349]
[1746371808082,0.4870327,95674.0,95673.0,1.1347349]
[1746371811385,0.3199,95674.0,95673.0,1.1347349]
[1746371811586,0.3258,95674.0,95673.0,1.1347349]
[1746371813391,0.5348327,95674.0,95673.0,1.1347349]
[1746371814888,0.5348327,95674.0,95673.0,0.7739349]
[1746371815379,0.5348327,95674.0,95673.0,0.8577349]
[1746371819698,0.5348327,95674.0,95673.0,0.4969349]
[1746371819899,0.5348327,95674.0,95673.0,0.8577349]
[1746371820796,0.5348327,95674.0,95673.0,0.4969349]
[1746371820996,0.5348327,95674.0,95673.0,0.8577349]
[1746371824089,0.4870327,95674.0,95673.0,0.8577349]
[1746371824291,0.5348327,95674.0,95673.0,0.8577349]
[1746371827302,0.5348327,95674.0,95673.0,0.7397349]
[1746371828204,0.5348327,95674.0,95673.0,0.8577349]
[1746371828405,0.4870327,95674.0,95673.0,0.8577349]
[1746371830606,0.3470327,95674.0,95673.0,0.8577349]
[1746371831501,0.3016327,95674.0,95673.0,0.8577349]
[1746371831706,0.3948327,95674.0,95673.0,0.8577349]
[1746371833803,0.4048327,95674.0,95673.0,0.8577349]
[1746371834508,0.3948327,95674.0,95673.0,0.8577349]
[1746371835008,0.4048327,95674.0,95673.0,0.8577349]
[1746371836109,0.4048327,95674.0,95673.0,0.7397349]
[1746371836610,0.4048327,95674.0,95673.0,0.7359349]
[1746371837413,0.4048327,95674.0,95673.0,0.3751349]
[1746371837616,0.4048327,95674.0,95673.0,0.3608]
[1746371837617,0.6748327,95674.0,95673.0,0.3608]
[1746371837808,0.9248327,95674.0,95673.0,0.3608]
[1746371838016,0.7048327,95674.0,95673.0,0.3608]
[1746371838515,1.0848327,95674.0,95673.0,0.3608]
[1746371840213,1.0848327,95674.0,95671.0,0.15957162]
[1746371840214,0.2090371,95672.0,95671.0,0.15957162]
[1746371840414,1.0190371,95672.0,95671.0,0.15957162]
[1746371840612,1.0826771,95672.0,95671.0,0.15957162]
[1746371840813,1.1707771,95672.0,95671.0,0.15957162]
[1746371841112,0.9507771,95672.0,95671.0,0.15957162]
[1746371841310,0.9517771,95672.0,95671.0,0.15957162]
[1746371842216,0.2090546,95664.0,95663.0,0.2090557]
[1746371842416,0.5190546,95664.0,95663.0,0.2090557]
[1746371842717,0.2090567,95663.0,95662.0,0.15957162]
[1746371842914,0.5843567,95663.0,95662.0,0.15957162]
[1746371843316,0.5843567,95663.0,95662.0,0.36863052]
[1746371843721,0.5833567,95663.0,95662.0,0.36863052]
[1746371843922,0.5823567,95663.0,95662.0,0.36863052]
[1746371844521,0.5823567,95663.0,95662.0,0.36963052]
[1746371844719,0.5823567,95663.0,95662.0,0.37063052]
[1746371845428,0.5823567,95663.0,95662.0,0.2110589]
[1746371845721,0.5823567,95663.0,95662.0,0.002]
[1746371846019,1.8668927,95663.0,95662.0,0.002]
[1746371846209,1.9668927,95663.0,95662.0,0.002]
[1746371851529,0.2090895,95648.0,95647.0,0.20257182]
[1746371851736,0.5790895,95648.0,95647.0,0.20257182]
[1746371852435,0.7536895,95648.0,95647.0,0.20257182]
[1746371852944,0.76674095,95648.0,95647.0,0.20557182]
[1746371853144,0.76674095,95648.0,95647.0,0.20957182]
[1746371855138,0.76674095,95648.0,95647.0,0.29077182]
[1746371855339,0.76674095,95648.0,95647.0,0.37657182]
[1746371860840,1.14674095,95648.0,95647.0,0.37657182]
[1746371861745,1.14674095,95648.0,95647.0,0.174]
[1746371862642,1.14674095,95648.0,95647.0,0.171]
[1746371862942,1.14674095,95648.0,95647.0,0.169]
[1746371863242,1.05904095,95648.0,95647.0,0.169]
[1746371865047,1.05904095,95648.0,95647.0,0.3780917]
[1746371866344,0.98904095,95648.0,95647.0,0.3780917]
[1746371866548,0.99904095,95648.0,95647.0,0.3780917]
[1746371866747,1.06264095,95648.0,95647.0,0.3780917]
[1746371870745,1.06264095,95648.0,95647.0,0.169]
[1746371878353,0.99904095,95648.0,95647.0,0.169]
[1746371878554,1.06268095,95648.0,95647.0,0.169]
[1746371882056,1.06268095,95648.0,95647.0,0.0878]
[1746371882354,1.06268095,95648.0,95647.0,0.002]
[1746371883843,1.06268095,95648.0,95647.0,0.0888]
[1746371884047,1.06268095,95648.0,95647.0,0.002]
[1746371885147,1.26268095,95648.0,95647.0,0.002]
[1746371886553,0.0522744,95645.0,95640.0,0.15957162]
[1746371886752,0.7699048,95641.0,95640.0,0.15957162]
[1746371886959,1.6199048,95641.0,95640.0,0.15957162]
[1746371887559,1.7863048,95641.0,95640.0,0.16257162]
[1746371888253,1.7863048,95641.0,95640.0,0.16157162]
[1746371888454,1.7863048,95641.0,95640.0,0.16457162]
[1746371890057,1.7863048,95641.0,95640.0,0.005]
[1746371891159,1.89086481,95641.0,95640.0,0.005]
[1746371891953,0.2091201,95634.0,95633.0,0.15957162]
[1746371892152,1.2527601,95634.0,95633.0,0.15957162]
[1746371892861,1.4145601,95634.0,95633.0,0.15957162]
[1746371893060,1.4145601,95634.0,95633.0,0.16357162]
[1746371893367,1.4145601,95634.0,95633.0,0.004]
[1746371893863,1.3685601,95634.0,95633.0,0.004]
[1746371894063,1.4145601,95634.0,95633.0,0.004]
[1746371894263,0.2051289,95630.0,95629.0,0.0837]
[1746371894465,1.0651289,95630.0,95629.0,0.0837]
[1746371895364,1.2326289,95630.0,95629.0,0.0847]
[1746371900163,1.3326289,95630.0,95629.0,0.0847]
[1746371900463,1.2866289,95630.0,95629.0,0.0847]
[1746371900670,1.3326289,95630.0,95629.0,0.0847]
[1746371901169,1.2866289,95630.0,95629.0,0.0847]
[1746371901952,1.3326289,95630.0,95629.0,0.0847]
[1746371903869,1.3326289,95630.0,95629.0,0.001]
[1746371904369,1.4326289,95630.0,95629.0,0.001]
[1746371905869,1.3866289,95630.0,95629.0,0.001]
[1746371906173,1.4502689,95630.0,95629.0,0.001]
[1746371906470,1.3979689,95630.0,95629.0,0.001]
[1746371907271,1.4502689,95630.0,95629.0,0.001]
[1746371908771,1.3979689,95630.0,95629.0,0.001]
[1746371909276,1.4502689,95630.0,95629.0,0.001]
[1746371909569,1.3762689,95630.0,95629.0,0.001]
[1746371909876,1.9762689,95630.0,95629.0,0.001]
[1746371910063,1.6462689,95630.0,95629.0,0.001]
[1746371910264,0.2091398,95625.0,95624.0,0.087]
[1746371910564,1.2291398,95625.0,95624.0,0.087]
[1746371911262,0.2091595,95616.0,95615.0,0.00104586]
[1746371911460,1.1427995,95616.0,95615.0,0.00104586]
[1746371912066,1.1417995,95616.0,95615.0,0.11904586]
[1746371912463,1.1417995,95616.0,95615.0,0.12304586]
[1746371913567,1.25402579,95616.0,95615.0,0.12504586]
[1746371913767,1.42202579,95616.0,95615.0,0.12504586]
[1746371914268,1.42202579,95616.0,95615.0,0.00604586]
[1746371914472,1.42202579,95616.0,95615.0,0.00404586]
[1746371915071,1.42202579,95616.0,95615.0,0.09164586]
[1746371916179,1.34042579,95616.0,95615.0,0.09164586]
[1746371917085,1.34042579,95616.0,95615.0,0.17464586]
[1746371921686,1.29442579,95616.0,95615.0,0.17464586]
[1746371921877,1.34042579,95616.0,95615.0,0.17464586]
[1746371922276,1.29442579,95616.0,95615.0,0.17464586]
[1746371922476,1.30982579,95616.0,95615.0,0.17464586]
[1746371922676,1.34042579,95616.0,95615.0,0.17464586]
[1746371922876,1.30982579,95616.0,95615.0,0.17464586]
[1746371923182,1.34042579,95616.0,95615.0,0.17464586]
[1746371924177,1.24212579,95616.0,95615.0,0.17464586]
[1746371924376,1.29442579,95616.0,95615.0,0.17464586]
[1746371924579,1.34042579,95616.0,95615.0,0.17464586]
[1746371924886,1.29442579,95616.0,95615.0,0.17464586]
[1746371925181,1.24212579,95616.0,95615.0,0.17464586]
[1746371925387,1.29442579,95616.0,95615.0,0.17464586]
[1746371925586,1.29272579,95616.0,95615.0,0.17464586]
[1746371926075,1.29442579,95616.0,95615.0,0.17464586]
[1746371926885,1.24212579,95616.0,95615.0,0.17464586]
[1746371927082,1.29442579,95616.0,95615.0,0.17464586]
[1746371927881,1.29272579,95616.0,95615.0,0.17464586]
[1746371928085,0.89772579,95616.0,95615.0,0.17464586]
[1746371928285,0.8662995,95616.0,95615.0,0.50180756]
[1746371928587,0.8662995,95616.0,95615.0,0.86260756]
[1746371928983,0.01247429,95620.0,95619.0,0.2091529]
[1746371929180,0.07996178,95630.0,95629.0,0.2091311]
[1746371929376,0.43996178,95630.0,95629.0,0.5699311]
[1746371929588,0.11908558,95637.0,95636.0,0.2091158]
[1746371929983,0.46648958,95637.0,95636.0,0.2091158]
[1746371930186,0.46648958,95637.0,95636.0,0.3271158]
[1746371930481,0.46648958,95637.0,95636.0,0.4933158]
[1746371930895,0.46848958,95637.0,95636.0,0.4933158]
[1746371931593,0.47148958,95637.0,95636.0,0.4933158]
[1746371932892,0.0015,95640.0,95639.0,0.2091092]
[1746371933093,0.06364,95658.0,95645.0,0.2090961]
[1746371933294,0.28302759,95646.0,95645.0,0.2090961]
[1746371933486,0.13302759,95646.0,95645.0,0.3136481]
[1746371934095,0.2090838,95651.0,95650.0,0.2090852]
[1746371934286,0.3790838,95651.0,95650.0,0.2090852]
[1746371935093,0.3790838,95651.0,95650.0,0.4960852]
[1746371936494,0.3820838,95651.0,95650.0,0.4960852]
[1746371936793,0.176,95651.0,95650.0,0.4960852]
[1746371937192,0.173,95651.0,95650.0,0.4960852]
[1746371937393,0.17,95651.0,95650.0,0.4980852]
[1746371938091,0.17,95651.0,95650.0,0.4970852]
[1746371938393,0.17,95651.0,95650.0,0.4980852]
[1746371938594,0.17,95651.0,95650.0,0.4990852]
[1746371939696,0.17,95651.0,95650.0,0.4980852]
[1746371939900,0.3,95651.0,95650.0,0.4980852]
[1746371940397,0.31,95651.0,95650.0,0.4980852]
[1746371942100,0.31,95651.0,95650.0,0.8588852]
[1746371943899,0.31,95651.0,95650.0,0.4980852]
[1746371944200,0.31,95651.0,95650.0,0.8588852]
[1746371947302,0.3949,95651.0,95650.0,0.8588852]
[1746371947904,0.2249,95651.0,95650.0,0.8588852]
[1746371957105,0.3089,95651.0,95650.0,0.8588852]
[1746371957804,0.3925,95651.0,95650.0,0.8588852]
[1746371957998,0.601583,95651.0,95650.0,0.8588852]
[1746371959602,0.601583,95651.0,95650.0,0.8568852]
[1746371959808,0.601583,95651.0,95650.0,0.8578852]
[1746371961309,0.601583,95651.0,95650.0,0.8568852]
[1746371969021,0.1074,95651.0,95650.0,0.8568852]
[1746371969324,0.0897,95667.0,95660.0,0.2090633]
[1746371969526,0.30062997,95661.0,95660.0,0.5698633]
[1746371970322,0.30062997,95661.0,95660.0,0.8564633]
[1746371970624,0.30262997,95661.0,95660.0,0.8564633]
[1746371971324,0.30462997,95661.0,95660.0,0.8564633]
[1746371971631,0.09556887,95661.0,95660.0,0.8564633]
[1746371971920,0.00556887,95661.0,95660.0,0.8564633]
[1746371984928,0.00556887,95661.0,95660.0,0.6474]
[1746371985639,0.00556887,95661.0,95660.0,0.8564633]
[1746371986337,0.33462997,95661.0,95660.0,0.4788]
[1746371986538,0.32462997,95661.0,95660.0,0.6878633]
[1746371986733,0.42462997,95661.0,95660.0,0.4788]
[1746371986940,0.45782997,95661.0,95660.0,0.4788]
[1746371987131,0.45782997,95661.0,95660.0,0.3608]
[1746371987437,0.50562997,95661.0,95660.0,0.3608]
[1746371987643,0.50562997,95661.0,95660.0,0.5698633]
[1746371987940,0.45782997,95661.0,95660.0,0.3608]
[1746371988441,0.50562997,95661.0,95660.0,0.3608]
[1746371990142,0.72562997,95661.0,95660.0,0.3608]
[1746371990332,0.2090808,95652.0,95650.0,0.72933471]
[1746371990533,0.2390808,95652.0,95651.0,0.711583]
[1746371991543,0.4105808,95652.0,95651.0,0.292883]
[1746371991933,0.4105808,95652.0,95651.0,0.0838]
[1746371992341,0.42265254,95652.0,95651.0,0.0838]
[1746371992529,0.209083,95651.0,95650.0,0.52024951]
[1746371992841,0.259083,95651.0,95650.0,0.72933471]
[1746371993047,0.427383,95651.0,95650.0,0.52024951]
[1746371993942,0.427383,95651.0,95650.0,0.3608]
[1746371995245,0.427383,95651.0,95650.0,0.5698852]
[1746372000546,0.335983,95651.0,95650.0,0.5698852]
[1746372000742,0.04,95651.0,95650.0,0.5698852]
[1746372000949,0.0834,95660.0,95659.0,0.2090655]
[1746372001141,0.0834,95660.0,95659.0,0.5698655]
[1746372001342,0.3447337,95660.0,95659.0,0.5698655]
[1746372001541,0.3547337,95660.0,95659.0,0.3817655]
[1746372002245,0.4388337,95660.0,95659.0,0.3817655]
[1746372002549,0.4428337,95660.0,95659.0,0.3817655]
[1746372004360,0.4528337,95660.0,95659.0,0.3817655]
[1746372004542,0.4428337,95660.0,95659.0,0.3817655]
[1746372004850,0.2090655,95659.0,95658.0,0.3608]
[1746372005148,1.1836015,95659.0,95658.0,0.3608]
[1746372005358,1.6864015,95659.0,95658.0,0.3608]
[1746372005653,1.6386015,95659.0,95658.0,0.3608]
[1746372006245,1.7566015,95659.0,95658.0,0.3608]
[1746372006449,1.8689215,95659.0,95658.0,0.3608]
[1746372006648,1.8719215,95659.0,95658.0,0.3608]
[1746372006859,1.8241215,95659.0,95658.0,0.3608]
[1746372007154,1.82412551,95659.0,95658.0,0.3608]
[1746372008155,1.87192551,95659.0,95658.0,0.3608]
[1746372008556,1.82412551,95659.0,95658.0,0.3608]
[1746372008855,1.87192551,95659.0,95658.0,0.3608]
[1746372009941,1.82412551,95659.0,95658.0,0.3608]
[1746372010654,0.2090917,95647.0,95646.0,0.2918937]
[1746372010955,0.3290917,95647.0,95646.0,0.2918937]
[1746372011354,0.3812917,95647.0,95646.0,0.2918937]
[1746372011556,0.5475917,95647.0,95646.0,0.2918937]
[1746372011856,0.5475917,95647.0,95646.0,0.2938937]
[1746372012056,0.5475917,95647.0,95646.0,0.0848]
[1746372012057,0.5953917,95647.0,95646.0,0.0848]
[1746372013466,0.5475917,95647.0,95646.0,0.0848]
[1746372013648,0.5953917,95647.0,95646.0,0.0848]
[1746372014856,0.5953917,95647.0,95646.0,0.002]
[1746372017359,0.7133917,95647.0,95646.0,0.002]
[1746372017555,0.6673917,95647.0,95646.0,0.002]
[1746372017757,0.7133917,95647.0,95646.0,0.002]
[1746372018150,0.5953917,95647.0,95646.0,0.002]
[1746372019455,0.9553917,95647.0,95646.0,0.002]
[1746372019653,1.1953917,95647.0,95646.0,0.002]
[1746372020051,1.3133917,95647.0,95646.0,0.002]
[1746372020463,1.6733917,95647.0,95646.0,0.002]
[1746372021961,0.2091158,95636.0,95635.0,0.33174951]
[1746372022156,1.1591158,95636.0,95635.0,0.15944951]
[1746372022660,1.4224158,95636.0,95635.0,0.15944951]
[1746372023051,1.4421158,95636.0,95635.0,0.15944951]
[1746372024155,1.4947158,95636.0,95635.0,0.15944951]
[1746372024356,1.5424158,95636.0,95635.0,0.15944951]
[1746372024557,1.5444158,95636.0,95635.0,0.15944951]
[1746372025267,1.5444158,95636.0,95629.0,0.089]
[1746372025268,0.2091289,95630.0,95629.0,0.089]
[1746372025468,0.5991289,95630.0,95629.0,0.089]
[1746372026167,0.6844289,95630.0,95629.0,0.089]
[1746372026471,0.69762197,95630.0,95629.0,0.089]
[1746372027567,0.69862197,95630.0,95629.0,0.089]
[1746372028369,0.75177577,95630.0,95625.0,0.00156876]
[1746372028575,0.2091376,95626.0,95625.0,0.00156876]
[1746372028871,0.5791376,95626.0,95625.0,0.00156876]
[1746372029068,0.9399376,95626.0,95625.0,0.00156876]
[1746372029470,1.1121376,95626.0,95625.0,0.00156876]
[1746372029963,1.3521376,95626.0,95625.0,0.00156876]
[1746372030162,0.209142,95624.0,95623.0,0.0886]
[1746372030363,0.579142,95624.0,95623.0,0.0886]
[1746372030568,0.789142,95624.0,95623.0,0.0886]
[1746372030972,0.579142,95624.0,95623.0,0.0886]
[1746372032370,0.579142,95624.0,95623.0,0.0896]
[1746372034975,0.399142,95624.0,95623.0,0.0896]
[1746372035877,0.329142,95624.0,95623.0,0.2987442]
[1746372036068,0.359142,95624.0,95623.0,0.4167442]
[1746372039180,0.359142,95624.0,95623.0,0.2987442]
[1746372044786,0.359142,95624.0,95623.0,0.3815442]
[1746372051287,0.359142,95624.0,95623.0,0.21057623]
[1746372051882,0.446442,95624.0,95623.0,0.21057623]
[1746372055392,0.446442,95624.0,95623.0,0.0828]
[1746372055595,0.2091442,95623.0,95622.0,0.00156867]
[1746372055894,0.7072442,95623.0,95622.0,0.00156867]
[1746372056078,0.7950442,95623.0,95622.0,0.00156867]
[1746372057097,0.7950442,95623.0,95622.0,0.00256867]
[1746372057283,0.5850442,95623.0,95622.0,0.00256867]
[1746372057692,0.5850442,95623.0,95622.0,0.00356867]
[1746372066011,0.2091595,95616.0,95600.0,0.1]
[1746372066196,0.5591595,95616.0,95612.0,0.36861661]
[1746372066396,0.4608595,95616.0,95613.0,0.0855]
[1746372066600,0.4591595,95616.0,95614.0,0.2091637]
[1746372067104,0.6403595,95616.0,95615.0,0.08654586]
[1746372067296,0.6403595,95616.0,95615.0,0.29770756]
[1746372067900,0.6403595,95616.0,95615.0,0.29970756]
[1746372070291,0.6403595,95616.0,95615.0,0.09054586]
[1746372072499,0.6420595,95616.0,95615.0,0.09054586]
[1746372072700,0.6943595,95616.0,95615.0,0.09054586]
[1746372072999,0.7403595,95616.0,95615.0,0.09054586]
[1746372073200,0.6943595,95616.0,95615.0,0.09054586]
[1746372073996,0.7403595,95616.0,95615.0,0.09054586]
[1746372077607,0.6943595,95616.0,95615.0,0.09054586]
[1746372078601,0.7403595,95616.0,95615.0,0.09054586]
[1746372078802,0.6943595,95616.0,95615.0,0.09054586]
[1746372082497,0.7403595,95616.0,95615.0,0.09054586]
[1746372082899,0.6943595,95616.0,95615.0,0.09054586]
[1746372083306,0.7403595,95616.0,95615.0,0.09054586]
[1746372086501,0.2091858,95604.0,95599.0,0.3608]
[1746372086714,1.1391858,95604.0,95599.0,0.3608]
[1746372087211,1.2571858,95604.0,95596.0,0.0858]
[1746372087397,1.4366858,95604.0,95596.0,0.0858]
[1746372088008,1.4366858,95604.0,95603.0,0.001]
[1746372088411,1.4366858,95604.0,95603.0,0.004]
[1746372088710,1.4376858,95604.0,95603.0,0.004]
[1746372089210,0.2091901,95602.0,95601.0,0.0892]
[1746372089412,0.5091901,95602.0,95601.0,0.0892]
[1746372090613,0.5111901,95602.0,95601.0,0.0892]
[1746372091909,0.5121901,95602.0,95601.0,0.0892]
[1746372095021,0.6121901,95602.0,95601.0,0.0892]
[1746372095416,0.5661901,95602.0,95601.0,0.0892]
[1746372095818,0.5661901,95602.0,95601.0,0.1756]
[1746372096044,0.2091923,95601.0,95590.0,0.0523039]
[1746372096236,0.6402923,95601.0,95594.0,0.3864074]
[1746372097140,0.6412923,95601.0,95594.0,0.3864074]
[1746372097338,0.6422923,95601.0,95595.0,0.093]
[1746372097936,0.6422923,95601.0,95596.0,0.0864]
[1746372098537,0.6422923,95601.0,95597.0,0.093]
[1746372099437,0.6422923,95601.0,95598.0,0.0917]
[1746372100139,0.6422923,95601.0,95599.0,0.0918]
[1746372105328,0.7064123,95601.0,95599.0,0.0918]
[1746372106236,0.7064123,95601.0,95600.0,0.1912]
[1746372118038,0.7064123,95601.0,95600.0,0.1]
[1746372120549,0.6564123,95601.0,95600.0,0.1]
[1746372120750,0.7564123,95601.0,95600.0,0.1]
[1746372121048,0.7864123,95601.0,95600.0,0.193]
[1746372122351,0.7387123,95601.0,95600.0,0.193]
[1746372122743,0.7864123,95601.0,95600.0,0.193]
[1746372129557,0.7387123,95601.0,95600.0,0.193]
[1746372130355,0.7864123,95601.0,95600.0,0.193]
[1746372130655,0.7387123,95601.0,95600.0,0.193]
[1746372131458,0.6745923,95601.0,95600.0,0.193]
[1746372132653,0.7222923,95601.0,95600.0,0.193]
[1746372133459,0.6745923,95601.0,95600.0,0.193]
[1746372133754,0.6445923,95601.0,95600.0,0.193]
[1746372134157,0.6645923,95601.0,95600.0,0.193]
[1746372134948,0.5220923,95601.0,95600.0,0.193]
[1746372135150,0.5220923,95601.0,95600.0,0.311]
[1746372136254,0.5220923,95601.0,95600.0,0.193]
[1746372137266,0.6097923,95601.0,95600.0,0.193]
[1746372144166,0.6097923,95601.0,95600.0,0.311]
[1746372144365,0.7947923,95601.0,95600.0,0.311]
[1746372144662,0.6947923,95601.0,95600.0,0.311]
[1746372145261,0.7947923,95601.0,95600.0,0.193]
[1746372145462,0.7470923,95601.0,95600.0,0.193]
[1746372146350,0.7947923,95601.0,95600.0,0.193]
[1746372146550,0.7470923,95601.0,95600.0,0.193]
[1746372149269,0.7947923,95601.0,95600.0,0.193]
[1746372149565,0.7470923,95601.0,95600.0,0.193]
[1746372153462,0.6947923,95601.0,95600.0,0.193]
[1746372176797,0.6097923,95601.0,95600.0,0.193]
[1746372184005,0.7097923,95601.0,95600.0,0.193]
[1746372185805,0.6097923,95601.0,95600.0,0.193]
[1746372188705,0.7097923,95601.0,95600.0,0.193]
[1746372194098,0.6620923,95601.0,95600.0,0.193]
[1746372195410,0.6097923,95601.0,95600.0,0.193]
[1746372197614,0.6620923,95601.0,95600.0,0.193]
[1746372199316,0.6097923,95601.0,95600.0,0.193]
[1746372226655,0.6097923,95601.0,95600.0,0.04038454]
[1746372233058,0.6097923,95601.0,95600.0,0.15838454]
[1746372235354,0.6097923,95601.0,95600.0,0.04038454]
[1746372236360,0.6097923,95601.0,95598.0,0.0862]
[1746372236361,0.0523045,95590.0,95585.0,0.17133675]
[1746372236555,0.2092251,95586.0,95585.0,0.04948972]
[1746372236756,1.3992251,95586.0,95585.0,0.04948972]
[1746372236954,0.2092361,95581.0,95580.0,0.00156935]
[1746372237154,0.3692361,95581.0,95580.0,0.00156935]
[1746372237468,0.59012039,95581.0,95580.0,0.00156935]
[1746372237950,0.76352039,95581.0,95580.0,0.00156935]
[1746372238152,0.6635361,95581.0,95580.0,0.11956935]
[1746372238352,0.08,95581.0,95580.0,0.7926623]
[1746372238565,0.2615175,95592.0,95583.0,0.0523079]
[1746372238765,0.3715175,95592.0,95591.0,0.5700142]
[1746372239264,0.38262541,95592.0,95591.0,0.6880142]
[1746372239763,0.47192541,95592.0,95591.0,0.8668142]
[1746372239965,0.47492541,95592.0,95591.0,0.6846848]
[1746372240464,0.47192541,95592.0,95591.0,0.6846848]
[1746372240653,0.47692541,95592.0,95591.0,0.6846848]
[1746372240854,0.48092541,95592.0,95591.0,0.6846848]
[1746372241154,0.4698175,95592.0,95591.0,0.6846848]
[1746372241564,0.4718175,95592.0,95591.0,0.6846848]
[1746372248170,0.4718175,95592.0,95591.0,0.5060142]
[1746372250071,0.4918175,95592.0,95591.0,0.118]
[1746372250572,0.8526175,95592.0,95591.0,0.118]
[1746372250964,0.8526175,95592.0,95591.0,0.3272142]
[1746372251270,0.8526175,95592.0,95591.0,0.118]
[1746372252067,0.9526175,95592.0,95591.0,0.118]
[1746372252372,0.8526175,95592.0,95591.0,0.118]
[1746372253559,1.1926175,95592.0,95591.0,0.118]
[1746372253759,1.4026175,95592.0,95591.0,0.118]
[1746372254067,1.1926175,95592.0,95591.0,0.118]
[1746372254371,0.2092405,95579.0,95578.0,0.3002427]
[1746372254554,0.2892405,95579.0,95578.0,0.3002427]
[1746372255071,0.2892405,95579.0,95578.0,0.4182427]
[1746372255272,0.3737405,95579.0,95578.0,0.4182427]
[1746372255673,0.4661405,95579.0,95578.0,0.4182427]
[1746372255878,0.4661405,95579.0,95578.0,0.3272427]
[1746372256266,0.4681405,95579.0,95578.0,0.3272427]
[1746372256473,0.4711405,95579.0,95578.0,0.3272427]
[1746372258967,0.4711405,95579.0,95578.0,0.118]